Cogmind - Beta 14 @@@ ROGUE MODE // 2024.08.28 @ 16:27:37 Player: THN-L0C Result: Destroyed by DAS Turret with DAS Cannon Performance ------------- Evolutions (0) 0 Regions Visited (3) 600 Robots Destroyed (24) 120 Value Destroyed (455) 455 Prototype IDs (24) 480 Alien Tech Used (0) 0 Bonus (300) 300 TOTAL SCORE: 1955 Bonus ------- Aligned with FarCom 300 Cogmind --------- Core Integrity 0/250 Matter 262/300 Energy 134/160 System Corruption 2% Temperature Cool (32) Movement Rolling (150) Ox4 Location -10/Exiles Parts ------- > --- POWER (1) -------- Light Nuclear Core > --- PROPULSION (2) --- Armored Wheel > --- UTILITY (2) ------ High-capacity Storage Unit Hardened Light Armor Plating > --- WEAPON (2) ------- Mining Laser > --- INVENTORY (20) --- Cooled Ion Engine Cooled Ion Engine Cooled Ion Engine Improved Aluminum Leg Improved Aluminum Leg Improved Aluminum Leg Improved Aluminum Leg Armored Wheel Improved Heat Sink High-capacity Matter Pod (200) Power Shielding Weapon Shielding Hardened Light Armor Plating Particle Gun Firepult Light Assault Rifle Peak State ------------ > --- POWER ------------ Light Nuclear Core > --- PROPULSION ------- Armored Wheel Armored Wheel > --- UTILITY ---------- High-capacity Storage Unit Hardened Light Armor Plating > --- WEAPON ----------- Mining Laser Plasma Cutter > --- INVENTORY -------- Cooled Ion Engine Cooled Ion Engine Cooled Ion Engine Improved Aluminum Leg Improved Aluminum Leg Improved Aluminum Leg Improved Aluminum Leg Armored Wheel Improved Heat Sink High-capacity Matter Pod Power Shielding Weapon Shielding Hardened Light Armor Plating Particle Gun Firepult Light Assault Rifle Proton Bomb Trap Proton Bomb Trap Proton Bomb Trap [Rating: 18] Favorites ----------- Power Ion Engine Engine Ion Engine Power Core Light Nuclear Core Propulsion Armored Wheel Treads Light Treads Leg Improved Aluminum Leg Wheel Armored Wheel Utility High-capacity Storage Unit Device Seismic Detector Storage High-capacity Storage Unit Protection Hardened Light Armor Plating Weapon Small Laser Energy Gun Small Laser Ballistic Gun Assault Rifle Special Weapon Mining Laser Build | -11 -10 -10 -10 ------- Run | Yrd Mat Min Exi Slots Evolved . | . . . . Power . | . . . . Propulsion . | . . . . Utility . | . . . . Weapon . | . . . . Parts Attached 29 | 7 17 3 2 Power 4 | 1 2 1 . Engine 3 | 1 2 . . Core 1 | . . 1 . Reactor . | . . . . Propulsion 7 | 2 4 1 . Treads 2 | 2 . . . Leg 2 | . 2 . . Wheel 3 | . 2 1 . Hover . | . . . . Flight . | . . . . Utility 9 | 2 7 . . Device 2 | 1 1 . . Storage 3 | 1 2 . . Processor . | . . . . Hackware . | . . . . Protection 4 | . 4 . . Artifact . | . . . . Weapon 9 | 2 4 1 2 Energy Gun 5 | 1 3 1 . Energy Cannon . | . . . . Ballistic Gun 2 | 1 1 . . Ballistic Cannon . | . . . . Launcher . | . . . . Special Weapon 2 | . . . 2 Impact Weapon . | . . . . Slashing Weapon . | . . . . Piercing Weapon . | . . . . Special Melee Weapon . | . . . . Unidentified Prototypes 1 | . 1 . . Parts Lost 6 | . 3 1 2 Power . | . . . . Propulsion 2 | . . 1 1 Utility 2 | . 2 . . Weapon 2 | . 1 . 1 Highest Loss Streak 2 | . 2 1 2 To Critical Strikes . | . . . . Average Slot Usage (%) 97 | . 99 100 85 Engine 10 | . 14 3 . Core 3 | . . 10 14 Leg 5 | . 7 . . Wheel 21 | . 18 28 28 Device 4 | . 7 . . Storage 14 | . 14 14 14 Protection 9 | . 6 14 14 Energy Gun 12 | . 13 14 1 Ballistic Gun 12 | . 14 14 2 Special Weapon 1 | . . . 9 Peak Build Rating 18 | 7 15 15 18 Average Rating 11 | 5 11 14 14 On Entrance 9 | . 7 15 15 Naked Turns . | . . . . Heaviest Build 91 | 14 91 55 52 Greatest Support 40 | 40 40 24 24 Greatest Overweight (x) 4 | 3 3 2 4 Average Overweight (x) 1 | . 1 2 2 Largest Inventory Capacity 25 | 8 25 20 20 Average Capacity 18 | 7 18 20 20 Most Carried 20 | . 19 20 20 Average Carried 13 | . 12 19 19 Final Capacity 20 | 8 20 20 20 Final Carried 20 | . 19 20 17 Class Distribution -------------------- 100% | Mutant Dominant Class ---------------- Mutant | -10/Materials Mutant | -10/Mines Mutant | -10/Exiles Resources | -11 -10 -10 -10 ----------- Run | Yrd Mat Min Exi Matter Collected 980 | 317 604 59 . Remotely . | . . . . Salvage Created 781 | 113 492 176 . Parts 55 | 2 42 11 . Haulers Intercepted . | . . . . Recyclers Shooed 2 | 1 . 1 . Parts Field Recycled . | . . . . Retrieved Matter . | . . . . Parts Self-Destructed . | . . . . Prevented . | . . . . Kills | -11 -10 -10 -10 ------- Run | Yrd Mat Min Exi Combat Hostiles Destroyed 17 | . 14 3 . Guns 17 | . 14 3 . Classes Destroyed 6 | 2 4 . . Worker 2 | . 1 1 . Tunneler 1 | 1 . . . Recycler 3 | 1 1 1 . Watcher 1 | . 1 . . Swarmer 8 | . 6 2 . Grunt 9 | . 8 1 . Best Kill Streak 5 | 1 5 2 . Combat Bots Only 5 | . 5 2 . Max Kills in Single Turn 1 | 1 1 1 . Gunslinging . | . . . . Exploded . | . . . . Melee . | . . . . Uniques/NPCs Destroyed . | . . . . Combat | -11 -10 -10 -10 -------- Run | Yrd Mat Min Exi Hostile Shots Fired 150 | . 96 25 29 Missed 43 | . 24 6 13 Damage Taken 1354 | . 707 253 394 Core 301 | . 134 40 127 Absorbed by Shields . | . . . . Core Remaining (%) 100 | 100 . . . Volleys Fired 95 | 19 57 18 1 Largest 2 | 2 2 2 1 Hottest 100 | 60 60 60 100 Shots Fired 161 | 32 91 36 2 Gun 160 | 32 91 36 1 Cannon . | . . . . Launcher . | . . . . Special 1 | . . . 1 Kinetic 94 | 19 57 18 . Thermal 67 | 13 34 18 2 Explosive . | . . . . Electromagnetic . | . . . . Robot Hit Streak 11 | 10 11 7 . Robot Miss Streak 4 | 4 4 3 1 Penetration Max . | . . . . Secondary Targets 4 | . 3 1 . Max Gunslinging Chain 1 | . 1 1 . Shots Hit Robots 93 | 19 54 20 . Core Hits 40 | 3 27 10 . Critical Kills . | . . . . Critical Parts Destroyed . | . . . . Critical Strikes . | . . . . Melee Attacks . | . . . . Impact . | . . . . Slashing . | . . . . Piercing . | . . . . Sneak Attacks . | . . . . Combat Hostiles . | . . . . Follow-up Attacks . | . . . . Damage Inflicted 1021 | 228 603 190 . Guns 1018 | 228 600 190 . Cannons . | . . . . Explosions . | . . . . Melee . | . . . . Ramming 3 | . 3 . . Kinetic 566 | 130 356 80 . Thermal 452 | 98 244 110 . Explosive . | . . . . Electromagnetic . | . . . . Impact . | . . . . Slashing . | . . . . Piercing . | . . . . Highest Corruption 2 | . 2 2 2 Average Corruption 1 | . 1 2 2 Corruption Purged . | . . . . Corruption Blocked . | . . . . Effects 19 | . 12 3 4 Message Errors 2 | . 1 . 1 Matter Fused 8 | . 4 2 2 Heat Flow Errors 1 | . 1 . . Energy Discharges 2 | . 2 . . Parts Rejected 2 | . 2 . . Data Loss (minor) 3 | . 2 1 . Misfires 1 | . . . 1 Overload Shots . | . . . . Overflow Damage . | . . . . Projectiles . | . . . . Explosions . | . . . . Melee . | . . . . Knockbacks . | . . . . Impact . | . . . . Kinetic . | . . . . Secondary . | . . . . Self-Inflicted Damage 19 | . 1 . 18 Shots 1 | . . . 1 Rammed 1 | . 1 . . Targets Rammed 1 | . 1 . . Kicked . | . . . . Crushed . | . . . . Highest Temperature 232 | . 137 232 14 Average Temperature 53 | . 41 75 8 Received Heat Transfer 415 | . 267 108 40 Siege Activations . | . . . . Robots Corrupted . | . . . . Combat Hostiles . | . . . . Parts Fried . | . . . . Impact Corruptions . | . . . . Robots Melted . | . . . . Combat Hostiles . | . . . . Parts Melted . | . . . . Heat Transferred 1025 | 225 550 250 . Parts Sabotaged . | . . . . Parts Stolen . | . . . . Parts Stripped . | . . . . Power Chain Reactions . | . . . . Alert | -11 -10 -10 -10 ------- Run | Yrd Mat Min Exi Peak Influence 315 | 10 315 164 . Initial 84 | . 6 84 . Average 104 | 2 101 152 . Maximum Alert Level 1 | . 1 . . Low Security (%) 81 | 100 73 100 . Level 1 18 | . 26 . . Level 2 . | . . . . Level 3 . | . . . . Level 4 . | . . . . Level 5 . | . . . . High Security . | . . . . Max Security . | . . . . Squads Dispatched 3 | . 3 . . Investigation 2 | . 2 . . Extermination . | . . . . Reinforcement 1 | . 1 . . Assault . | . . . . Garrison . | . . . . Intercept . | . . . . Searches Triggered . | . . . . Construction Impeded . | . . . . Haulers Reinforced . | . . . . Active Scanning Responses . | . . . . Cargo Convoy Interrupts . | . . . . Stealth | -11 -10 -10 -10 --------- Run | Yrd Mat Min Exi Distress Signals 2 | . 2 . . Communications Jammed . | . . . . Distress Signals . | . . . . Times Spotted 37 | . 26 4 7 Peak Tracking Total 10 | . 5 3 10 Tactical Retreats 4 | . 4 . . Traps | -11 -10 -10 -10 ------- Run | Yrd Mat Min Exi Traps Triggered 3 | . 2 . 1 Indirectly . | . . . . Trap Hack Attempts . | . . . . Triggered . | . . . . Disarmed . | . . . . Reprogrammed . | . . . . Reused 2 | . . . 2 Traps Extracted . | . . . . Installed 3 | . . . 3 Triggered . | . . . . Most Traps Carried 3 | . . 3 3 Machines | -11 -10 -10 -10 ---------- Run | Yrd Mat Min Exi Machines Disabled 1 | . . . 1 Max in Single Turn 1 | . . . 1 Machines Repaired . | . . . . Machines Dismantled 1 | . . . 1 Machines Sabotaged . | . . . . Overloaded Fab Kills . | . . . . Hacking | -11 -10 -10 -10 --------- Run | Yrd Mat Min Exi Machines Accessed 9 | . 8 . 1 Terminals 7 | . 7 . . Fabricators . | . . . . Repair Stations . | . . . . Recycling Units 1 | . 1 . . Scanalyzers . | . . . . Garrison Access . | . . . . Total Hacks 23 | . 22 . 1 Successful 14 | . 13 . 1 Failed 9 | . 9 . . Catastrophic . | . . . . Database Lockouts . | . . . . Manual 21 | . 20 . 1 Terminals 21 | . 21 . . Fabricators . | . . . . Repair Stations . | . . . . Recycling Units 1 | . 1 . . Scanalyzers . | . . . . Garrison Access . | . . . . Terminal Hacks 2 | . 1 . 1 Robot Analysis 1 | . 1 . . Derelict Proto ID Bank 1 | . . . 1 Fabricator Hacks . | . . . . Repair Station Hacks . | . . . . Recycling Unit Hacks 1 | . 1 . . Retrieve Components 1 | . 1 . . Scanalyzer . | . . . . Garrison Access Hacks . | . . . . Unauthorized Hacks 11 | . 11 . . Terminals 11 | . 11 . . Assimilate 1 | . 1 . . Botnet 3 | . 3 . . Skim 7 | . 7 . . Fabricators . | . . . . Repair Stations . | . . . . Recycling Units . | . . . . Scanalyzers . | . . . . Garrison Access . | . . . . Data Cores Recovered . | . . . . Used . | . . . . Hacking Detections 5 | . 5 . . Full Trace Events 2 | . 2 . . Feedback Events 1 | . 1 . . Corruption 1 | . 1 . . Feedback Blocked . | . . . . Robot Schematics Acquired . | . . . . Robots Built . | . . . . Authchips . | . . . . Time . | . . . . Total Robot Build Rating . | . . . . Part Schematics Acquired . | . . . . Parts Built . | . . . . Authchips . | . . . . Time . | . . . . Total Part Build Rating . | . . . . Parts Repaired . | . . . . Time . | . . . . Parts Recycled . | . . . . Recycled Matter . | . . . . Retrieved Matter . | . . . . Retrieved Components 3 | . 3 . . Parts Scanalyzed . | . . . . Part Schematics Acquired . | . . . . Parts Damaged . | . . . . Bothacking | -11 -10 -10 -10 ------------ Run | Yrd Mat Min Exi Used RIF Installer . | . . . . Robots Hacked . | . . . . Non-combat . | . . . . Combat . | . . . . Robot Hacks Applied . | . . . . Relay Couplers Released . | . . . . Fabnet Peak Effective % . | . . . . Robots Rewired . | . . . . Allies Hacked . | . . . . Hacks Repelled . | . . . . Allies | -11 -10 -10 -10 -------- Run | Yrd Mat Min Exi Total Allies . | . . . . Largest Group . | . . . . Highest-Rated Group . | . . . . Highest-Rated Ally . | . . . . Total Orders . | . . . . Ally Attacks . | . . . . Total Damage . | . . . . Kills . | . . . . Allies Corrupted . | . . . . Allies Melted . | . . . . Intel | -11 -10 -10 -10 ------- Run | Yrd Mat Min Exi Robot Analysis Total 1 | . 1 . . Derelict Logs Recovered . | . . . . Drone Launches . | . . . . Drone Recoveries . | . . . . Exploration | -11 -10 -10 -10 ------------- Run | Yrd Mat Min Exi Turns Passed 2066 | 145 1292 401 228 Spaces Moved 1194 | 53 680 285 176 Core 4 | 4 . . . Treads 83 | 49 34 . . Legs 138 | . 138 . . Wheels 969 | . 508 285 176 Hover . | . . . . Flight . | . . . . Fastest Speed 50 | 50 120 120 120 Average Speed 126 | 155 129 120 120 Slowest Speed 330 | 200 330 120 150 Overloaded Moves . | . . . . Propulsion Burnouts . | . . . . Robots Hopped . | . . . . Cave-ins Triggered . | . . . . Exploration Rate (%) 49 | 5 86 61 45 Regions Visited 3 Branch Regions 2 Pre-discovered Areas . | . . . . Known Exits Taken 1 | . 1 . . Unknown Exits Taken 2 | 1 . 1 . Scrap Searched 1 | . . 1 . Spaces Dug . | . . . . Terrain Destroyed . | . . . . Melee . | . . . . Projectile . | . . . . AOE . | . . . . Terrain Rammed . | . . . . Walls Destroyed . | . . . . Machines Disabled . | . . . . Actions | -11 -10 -10 -10 --------- Run | Yrd Mat Min Exi Total 1582 | 80 1000 312 190 Wait 223 | 2 221 . . Move 1191 | 52 679 284 176 Hop . | . . . . Pick Up 26 | . 21 4 1 Fast Attach 10 | 7 3 . . Attach 5 | . 2 1 2 Detach . | . . . . Swap 14 | . 12 2 . Drop 12 | . 4 3 5 Fire 95 | 19 57 18 1 Melee . | . . . . Ram 1 | . 1 . . Kick . | . . . . Crush . | . . . . Escape Stasis . | . . . . Rewire . | . . . . Trap 3 | . . . 3 Miscellaneous 2 | . . . 2 Route ------- -11/Scrapyard -10/Materials (discovered 5 exits: *Mat x3 / *Min / [*Sub]) -10/Mines (discovered 3 exits: *Mat x2 / *Exi) -10/Exiles (discovered 2 exits: Min x2) History --------- Turn | Location | Event 31 | -11/Scrapyard | Discovered new exit (range 16) 146 | -11/Scrapyard | Entered Materials 318 | -10/Materials | Build established: Mutant 867 | -10/Materials | Discovered new exit (range 5) 951 | -10/Materials | Discovered new exit (range 9) 1159 | -10/Materials | Discovered new exit (range 16) 1176 | -10/Materials | Learned 2 Storage zone layouts 1234 | -10/Materials | Learned Storage stockpile data 1284 | -10/Materials | Learned Storage stockpile data 1324 | -10/Materials | Learned location of 2 exits from Mines 1327 | -10/Materials | Core integrity fell below 50% 1354 | -10/Materials | Identified exit to Mines 1354 | -10/Materials | Identified exit to Materials 1374 | -10/Materials | Learned location of 2 exits from Materials 1438 | -10/Materials | Entered Mines 1511 | -10/Mines | Met a Derelict bent on vengeance 1771 | -10/Mines | Found a hidden stash of uninstalled traps 1833 | -10/Mines | Deemed a non-threat by the Exiles lab entrance 1834 | -10/Mines | Discovered new exit (range 5) 1839 | -10/Mines | Entered Exiles 1840 | -10/Exiles | Identified exit to Mines 1868 | -10/Exiles | Met 8R-AWN 1890 | -10/Exiles | Met EX-HEX 1927 | -10/Exiles | Met EX-BIN 1941 | -10/Exiles | Aligned with FarCom system 1942 | -10/Exiles | Given EX-Vault access code 1975 | -10/Exiles | Opened EX-Vault 1988 | -10/Exiles | Found Firepult 2015 | -10/Exiles | Warned to stay clear of 0b10 Research branches 2048 | -10/Exiles | Attacked by the Exiles 2065 | -10/Exiles | Core integrity fell below 20% 2067 | -10/Exiles | Destroyed by DAS Turret with DAS Cannon Last Messages --------------- 02048_ EXILES: Hostile robot within lab perimeter. Defensive protocols time, folks! 02053_ EX-BIN: "I just want to science!" 02055_ Dropped Proton Bomb Trap. 02055_ Installed Proton Bomb Trap. 02056_ Triggered Proton Bomb Trap. 02056_ A bubble of electromagnetic force engulfs the area. 02056_ Dropped Proton Bomb Trap. 02057_ Installed Proton Bomb Trap. 02060_ :ULBT=C/RELXL4FEZ1VMMI 02060_ as-62011 triggered Proton Bomb Trap. 02060_ A bubble of electromagnetic force engulfs the area. 02060_ as-62011 destroyed. 02060_ Plasma Cutter destroyed. 02061_ Arm. Wheel destroyed. 02061_ Dropped Proton Bomb Trap. 02062_ Installed Proton Bomb Trap. 02062_ Machine disabled. 02066_ as-79851 triggered Proton Bomb Trap. 02066_ A bubble of electromagnetic force engulfs the area. Map ----- +----------------------------------------------------+ | ????????????????????????????# #?#"""""""#????? | | ????????????????????????????# #?#"""""""#????? | | ???????????????????????????## ###"" """"#????? | | ???????????????????????????#" """"#????? | | ???????????????????????????#" """#????? | | ???????????????????????????#" """#????? | | ???????????????????????????#" """#????? | | ???????????????????????????#" """#????? | | ???????????????????????????#" """##???? | | ???????????????????????????## """""???? | | ????????????????????????????# """##???? | | ????????????????????????????#" "X" """""???? | | ????????????????????????????#" """ #????? | | ????????????????????????????#" """""""""#????? | | ???????????????????????????##" ###########????? | | ??????????????????????????##"" #??????????????? | | ?????????????????????######"" #??????????????? | | ?????????????X# ?#"###""""""" ##?????????????? | | ???????????? """""" " "" ##???########## | | ???????????? "" "" " #####""""""""" | | ???????????? " " " """ """ | | ??????????? "" " | | ??????????? " " | | ?????????? % " | | ?????????? a " | | ?????????? @a % % | | ?????????? c a a | | ?????????? c %###### a a | | ??????????? ""#?????#####""" | | ??????????? """#??????????##""" | | ???????????? """#????????????#"""" | | ???????????? ""?????????????#"" | | ???????????? ??????????????????"""" | | ????????????? ???????????????????" | | ????????????????????????????????" | | ????????????????????????????????? | | ???????????????????????????????? | | ???????????????????????????????? " | | ????????????????????????????????? "" """ | | ???????????????????????????????????"" " " ""#" | | ????????????????????????????????????##""" """##""" | | ?????????????????????????????????????###"""???#### | | ???????????????????????????????????????##????????? | | ?????????????????????????????????????????????????? | | ?????????????????????????????????????????????????? | | ?????????????????????????????????????????????????? | | ?????????????????????????????????????????????????? | | ?????????????????????????????????????????????????? | | ?????????????????????????????????????????????????? | | ?????????????????????????????????????????????????? | +----------------------------------------------------+ Best States ------------- Heat Dissipation 25 Energy Generation 14 Energy Capacity 280 Matter Stores 300 Matter Capacity 300 Sight Range 16 Terrain Scan Density 10 Armor Coverage 150 Evasion (%) 55 Recoil Reduction 2 Item Schematics ----------------- None Robot Schematics ------------------ None Fabricated ------------ Nothing Alien Tech Used ----------------- None Achievements -------------- None Challenges ------------ None Game ------ Seed SensorBackupMapper Manual? 0 Play Time 00:13:52 Cumulative 151.0 hours Start 2024.08.28 @ 16:07:46 End 2024.08.28 @ 16:27:37 Sessions 1 Manual Loads 0 Difficulty Rogue Special Mode None Game No. 118 Rogue 118 Adventurer 0 Explorer 0 Win Type - Total 0 Types 0/0/0/0/0/0/0/0/0 Lore% 59 Gallery% 66 Achievement% 48 Wizard Run 0 Options --------- Layout 2 ASCII 0 Keyboard 1 Movement Vi Keybinds 0 Fullscreen 1 Font 32/SmallcapsGlow Map View 77x44 Zoom Use 0% Tactical HUD 1 Map Filters NONE Filters NONE Steam 1 RUN: 360abd00-4557-4788-b5f8-1b076d45374a